[Event "49th Rilton Cup 2019-20"]
[Site "Stockholm"]
[Date "2019.12.27"]
[Round "1.13"]
[White "Valsecchi, Alessio"]
[Black "Foisor, Sabina-Francesca"]
[Result "1-0"]
[ECO "A11"]
[WhiteElo "2503"]
[BlackElo "2274"]
[Annotator "ChessBase"]
[PlyCount "53"]
[EventDate "2019.12.27"]
[EventType "swiss"]
[EventCountry "SWE"]
[SourceTitle "playchess.com"]
[Source "ChessBase"]
[SourceQuality "1"]
[TimeControl "30/5400+30:1800+30"]

1. c4 {[%emt 0:00:00]} c6 {[%emt 0:00:50]} 2. Nf3 {[%emt 0:00:13]} d5 {[%emt 0:00:43]} 3. e3 {[%emt 0:01:48]} Nf6 {[%emt 0:00:26]} 4. Nc3 {[%emt 0:01:49]} g6 {[%emt 0:00:59]} 5. d4 {[%emt 0:01:37]} Bg7 {[%emt 0:00:11]} 6. Bd3 {[%emt 0:01:44]} O-O {[%emt 0:02:05]} 7. O-O {[%emt 0:00:08]} a6 {[%emt 0:02:32]} 8. h3 {[%emt 0:07:21]} b5 {[%emt 0:01:20]} 9. b3 {[%emt 0:00:55]} Nbd7 {[%emt 0:07:19]} 10. Qc2 {[%emt 0:04:36]} Bb7 {[%emt 0:04:30]} 11. c5 {[%emt 0:08:11]} Re8 {[%emt 0:09:37]} 12. Bb2 {[%emt 0:04:15]} Qb8 {[%emt 0:08:34]} 13. Ne2 {[%emt 0:03:55]} a5 {[%emt 0:11:36]} 14. a3 {[%emt 0:00:21]} Ne4 {[%emt 0:06:57]} 15. Bxe4 {[%emt 0:09:38]} dxe4 {[%emt 0:00:05]} 16. Ng5 {[%emt 0:00:39]} f5 {[%emt 0:04:10]} 17. Ne6 {[%emt 0:01:38]} Nf6 {[%emt 0:13:07]} 18. Nxg7 {[%emt 0:06:22]} Kxg7 {[%emt 0:00:02]} 19. f3 {[%emt 0:00:12]} Bc8 {[%emt 0:07:46]} 20. fxe4 {[%emt 0:02:16]} Nxe4 {[%emt 0:05:13]} 21. d5+ {[%emt 0:05:45]} Kg8 {[%emt 0:00:01]} 22. Nc3 {[%emt 0:06:09]} cxd5 {[%emt 0:01:07]} 23. Nxe4 {[%emt 0:01:18]} dxe4 {[%emt 0:03:01]} 24. Rac1 {[%emt 0:06:53]} Ra6 {[%emt 0:03:16]} 25. c6 {[%emt 0:00:53]} Qc7 {[%emt 0:00:40]} 26. Qc5 {[%emt 0:03:40]} Be6 {[%emt 0:01:48]} 27. Qd4 {[%emt 0:00:26]} 1-0

[Event "49th Rilton Cup 2019-20"]
[Site "Stockholm"]
[Date "2019.12.27"]
[Round "1.14"]
[White "Crevatin, Leo"]
[Black "Quesada Perez, Luis Ernesto"]
[Result "0-1"]
[ECO "A61"]
[WhiteElo "2258"]
[BlackElo "2499"]
[Annotator "ChessBase"]
[PlyCount "88"]
[EventDate "2019.12.27"]
[EventType "swiss"]
[EventCountry "SWE"]
[SourceTitle "playchess.com"]
[Source "ChessBase"]
[SourceQuality "1"]
[TimeControl "30/5400+30:1800+30"]

1. d4 {[%emt 0:00:00]} Nf6 {[%emt 0:04:49]} 2. c4 {[%emt 0:00:37]} c5 {[%emt 0:00:14]} 3. d5 {[%emt 0:00:06]} e6 {[%emt 0:00:09]} 4. Nc3 {[%emt 0:00:06]} exd5 {[%emt 0:00:07]} 5. cxd5 {[%emt 0:00:05]} d6 {[%emt 0:00:07]} 6. Nf3 {[%emt 0:00:42]} g6 {[%emt 0:00:07]} 7. Bf4 {[%emt 0:00:04]} a6 {[%emt 0:00:09]} 8. a4 {[%emt 0:00:02]} Bg7 {[%emt 0:00:07]} 9. e3 {[%emt 0:01:00]} O-O {[%emt 0:00:08]} 10. Be2 {[%emt 0:01:34]} Bg4 {[%emt 0:04:04]} 11. O-O {[%emt 0:04:03]} Re8 {[%emt 0:02:11]} 12. Nd2 {[%emt 0:13:05]} Bxe2 {[%emt 0:00:09]} 13. Qxe2 {[%emt 0:00:04]} Nh5 {[%emt 0:00:10]} 14. Bg3 {[%emt 0:00:04]} Nxg3 {[%emt 0:00:12]} 15. hxg3 {[%emt 0:00:04]} Nd7 {[%emt 0:00:07]} 16. Nc4 {[%emt 0:00:17]} Ne5 {[%emt 0:00:12]} 17. a5 {[%emt 0:05:51]} Nxc4 {[%emt 0:00:55]} 18. Qxc4 {[%emt 0:00:05]} b5 {[%emt 0:00:08]} 19. axb6 {[%emt 0:01:06]} Qxb6 {[%emt 0:00:02]} 20. Ra2 {[%emt 0:07:10]} Qb4 {[%emt 0:04:24]} 21. Qd3 {[%emt 0:08:28]} a5 {[%emt 0:00:46]} 22. Rfa1 {[%emt 0:09:49]} Reb8 {[%emt 0:06:45]} 23. Qc2 {[%emt 0:05:03]} h5 {[%emt 0:06:47]} 24. Ne4 {[%emt 0:04:24]} c4 {[%emt 0:08:06]} 25. Ra4 {[%emt 0:15:43]} Qxb2 {[%emt 0:00:28]} 26. Qxc4 {[%emt 0:03:10]} Qxa1+ {[%emt 0:25:03]} 27. Rxa1 {[%emt 0:00:01]} Bxa1 {[%emt 0:00:02]} 28. Nxd6 {[%emt 0:01:34]} Be5 {[%emt 0:00:19]} 29. Nb5 {[%emt 0:01:21]} a4 {[%emt 0:00:07]} 30. f4 {[%emt 0:04:10]} Bf6 {[%emt 0:03:03]} 31. Qc6 {[%emt 0:32:38]} Bb2 {[%emt 0:30:11]} 32. f5 {[%emt 0:06:40]} gxf5 {[%emt 0:01:16]} 33. Qd7 {[%emt 0:03:27]} Rxb5 {[%emt 0:10:36]} 34. Qxb5 {[%emt 0:00:15]} a3 {[%emt 0:00:01]} 35. Qb7 {[%emt 0:02:24]} Ra5 {[%emt 0:00:07]} 36. Qc8+ {[%emt 0:01:00]} Kg7 {[%emt 0:00:15]} 37. Qxf5 {[%emt 0:00:16]} Bf6 {[%emt 0:00:16]} 38. Qxh5 {[%emt 0:00:29]} a2 {[%emt 0:02:42]} 39. Qg4+ {[%emt 0:00:03]} Kh6 {[%emt 0:00:15]} 40. Qh3+ {[%emt 0:00:30]} Kg6 {[%emt 0:00:20]} 41. Qg4+ {[%emt 0:00:00]} Bg5 {[%emt 0:00:00]} 42. Qe4+ {[%emt 0:00:00]} Kh6 {[%emt 0:00:00]} 43. Qe8 {[%emt 0:00:00]} a1=Q+ {[%emt 0:00:00]} 44. Kh2 {[%emt 0:00:00]} Kg7 {[%emt 0:00:00]} 0-1

[Event "49th Rilton Cup 2019-20"]
[Site "Stockholm"]
[Date "2019.12.27"]
[Round "1.15"]
[White "Miezis, Normunds"]
[Black "Torngren, Gustav"]
[Result "1-0"]
[ECO "A20"]
[WhiteElo "2486"]
[BlackElo "2255"]
[Annotator "ChessBase"]
[PlyCount "93"]
[EventDate "2019.12.27"]
[EventType "swiss"]
[EventCountry "SWE"]
[SourceTitle "playchess.com"]
[Source "ChessBase"]
[SourceQuality "1"]
[TimeControl "30/5400+30:1800+30"]

1. c4 {[%emt 0:00:00]} e5 {[%emt 0:00:00]} 2. g3 {[%emt 0:00:23]} Be7 {[%emt 0:00:00]} 3. Nc3 {[%emt 0:01:21]} f5 {[%emt 0:00:20]} 4. d4 {[%emt 0:02:27]} d6 {[%emt 0:00:08]} 5. Bg2 {[%emt 0:00:17]} Nf6 {[%emt 0:00:08]} 6. e3 {[%emt 0:05:24]} O-O {[%emt 0:00:24]} 7. Nge2 {[%emt 0:00:15]} c6 {[%emt 0:02:54]} 8. b3 {[%emt 0:02:53]} Be6 {[%emt 0:04:46]} 9. O-O {[%emt 0:03:44]} Bf7 {[%emt 0:13:11]} 10. Bh3 {[%emt 0:07:50]} Bg6 {[%emt 0:23:59]} 11. Bb2 {[%emt 0:04:39]} Qc7 {[%emt 0:02:18]} 12. Qd2 {[%emt 0:07:55]} Nbd7 {[%emt 0:04:25]} 13. f3 {[%emt 0:07:03]} a5 {[%emt 0:04:07]} 14. Rad1 {[%emt 0:06:36]} Rfe8 {[%emt 0:04:56]} 15. Kh1 {[%emt 0:05:58]} Bf8 {[%emt 0:00:38]} 16. Bg2 {[%emt 0:06:55]} Rad8 {[%emt 0:02:02]} 17. Rde1 {[%emt 0:03:33]} Qb8 {[%emt 0:05:25]} 18. Rc1 {[%emt 0:07:53]} b5 {[%emt 0:04:18]} 19. cxb5 {[%emt 0:01:18]} cxb5 {[%emt 0:00:02]} 20. f4 {[%emt 0:03:01]} e4 {[%emt 0:01:06]} 21. d5 {[%emt 0:01:52]} Qb7 {[%emt 0:05:42]} 22. Rcd1 {[%emt 0:04:39]} b4 {[%emt 0:00:48]} 23. Na4 {[%emt 0:00:25]} Bh5 {[%emt 0:00:55]} 24. h3 {[%emt 0:01:54]} Rc8 {[%emt 0:03:00]} 25. Kh2 {[%emt 0:04:20]} Bxe2 {[%emt 0:02:19]} 26. Qxe2 {[%emt 0:00:12]} Nxd5 {[%emt 0:00:15]} 27. Qd2 {[%emt 0:01:38]} N5b6 {[%emt 0:02:08]} 28. Nxb6 {[%emt 0:00:23]} Nxb6 {[%emt 0:00:02]} 29. g4 {[%emt 0:01:04]} Qf7 {[%emt 0:06:43]} 30. Rf2 {[%emt 0:02:25]} d5 {[%emt 0:01:59]} 31. gxf5 {[%emt 0:31:23]} Qxf5 {[%emt 0:30:22]} 32. Rg1 {[%emt 0:00:15]} Re6 {[%emt 0:02:08]} 33. Bf1 {[%emt 0:01:30]} Rg6 {[%emt 0:01:34]} 34. Rfg2 {[%emt 0:00:39]} Rxg2+ {[%emt 0:01:09]} 35. Rxg2 {[%emt 0:00:29]} Rc6 {[%emt 0:01:16]} 36. Be2 {[%emt 0:00:27]} Rg6 {[%emt 0:01:26]} 37. Bg4 {[%emt 0:00:17]} Qf7 {[%emt 0:00:06]} 38. Kh1 {[%emt 0:00:40]} Rc6 {[%emt 0:00:36]} 39. Bd4 {[%emt 0:01:07]} h5 {[%emt 0:01:13]} 40. Be2 {[%emt 0:00:22]} Qf5 {[%emt 0:00:32]} 41. Kh2 {[%emt 0:00:42]} Be7 {[%emt 0:00:00]} 42. Rxg7+ {[%emt 0:00:00]} Kf8 {[%emt 0:00:00]} 43. Qd1 {[%emt 0:00:00]} Bf6 {[%emt 0:00:00]} 44. Rg2 {[%emt 0:00:00]} Bd8 {[%emt 0:00:00]} 45. Bxh5 {[%emt 0:00:00]} Bf6 {[%emt 0:00:00]} 46. Bg4 {[%emt 0:00:00]} Qh7 {[%emt 0:00:00]} 47. Bxb6 {[%emt 0:00:00]} 1-0

[Event "49th Rilton Cup 2019-20"]
[Site "Stockholm"]
[Date "2019.12.27"]
[Round "1.16"]
[White "Pratyusha, Bodda"]
[Black "Nesterov, Arseniy"]
[Result "1/2-1/2"]
[ECO "A45"]
[WhiteElo "2253"]
[BlackElo "2482"]
[Annotator "ChessBase"]
[PlyCount "126"]
[EventDate "2019.12.27"]
[EventType "swiss"]
[EventCountry "SWE"]
[SourceTitle "playchess.com"]
[Source "ChessBase"]
[SourceQuality "1"]
[TimeControl "30/5400+30:1800+30"]

1. d4 {[%emt 0:00:00]} Nf6 {[%emt 0:00:00]} 2. Bf4 {[%emt 0:00:00]} e6 {[%emt 0:00:00]} 3. e3 {[%emt 0:00:00]} b6 {[%emt 0:00:04]} 4. Nf3 {[%emt 0:00:35]} Be7 {[%emt 0:00:08]} 5. h3 {[%emt 0:00:13]} c5 {[%emt 0:02:23]} 6. Nc3 {[%emt 0:00:26]} a6 {[%emt 0:13:40]} 7. d5 {[%emt 0:06:49]} d6 {[%emt 0:02:42]} 8. a4 {[%emt 0:03:37]} O-O {[%emt 0:03:37]} 9. Bc4 {[%emt 0:01:54]} e5 {[%emt 0:01:33]} 10. Bh2 {[%emt 0:00:04]} Ne8 {[%emt 0:03:32]} 11. O-O {[%emt 0:03:18]} Nd7 {[%emt 0:05:44]} 12. e4 {[%emt 0:02:02]} g6 {[%emt 0:01:33]} 13. Qe2 {[%emt 0:01:49]} Ng7 {[%emt 0:03:16]} 14. Ne1 {[%emt 0:02:28]} Nh5 {[%emt 0:09:27]} 15. Nd3 {[%emt 0:00:16]} Bg5 {[%emt 0:01:20]} 16. g3 {[%emt 0:06:06]} Bf6 {[%emt 0:03:09]} 17. g4 {[%emt 0:04:04]} Ng7 {[%emt 0:01:49]} 18. f4 {[%emt 0:00:18]} exf4 {[%emt 0:01:01]} 19. Bxf4 {[%emt 0:00:07]} Qe7 {[%emt 0:02:16]} 20. e5 {[%emt 0:14:43]} Nxe5 {[%emt 0:08:18]} 21. Nxe5 {[%emt 0:01:15]} Bxe5 {[%emt 0:00:30]} 22. Bxe5 {[%emt 0:01:54]} dxe5 {[%emt 0:05:46]} 23. Rae1 {[%emt 0:09:16]} Qh4 {[%emt 0:10:05]} 24. Qg2 {[%emt 0:00:13]} Ne8 {[%emt 0:04:01]} 25. Ne4 {[%emt 0:09:05]} Bb7 {[%emt 0:02:29]} 26. Qh2 {[%emt 0:07:43]} Qe7 {[%emt 0:05:10]} 27. g5 {[%emt 0:03:04]} b5 {[%emt 0:04:33]} 28. axb5 {[%emt 0:07:04]} axb5 {[%emt 0:00:04]} 29. Bxb5 {[%emt 0:00:12]} Bxd5 {[%emt 0:01:14]} 30. Nf6+ {[%emt 0:00:29]} Nxf6 {[%emt 0:00:07]} 31. gxf6 {[%emt 0:31:34]} Qb7 {[%emt 0:30:23]} 32. c4 {[%emt 0:03:48]} Bc6 {[%emt 0:01:57]} 33. Qd2 {[%emt 0:04:45]} Kh8 {[%emt 0:00:03]} 34. Bxc6 {[%emt 0:00:15]} Qxc6 {[%emt 0:00:04]} 35. Rxe5 {[%emt 0:00:11]} Rab8 {[%emt 0:01:25]} 36. Re7 {[%emt 0:01:38]} Rb3 {[%emt 0:01:31]} 37. Rxf7 {[%emt 0:03:19]} Rg3+ {[%emt 0:00:36]} 38. Kh2 {[%emt 0:00:04]} Rxh3+ {[%emt 0:00:03]} 39. Kxh3 {[%emt 0:00:05]} Qe6+ {[%emt 0:00:04]} 40. Kg3 {[%emt 0:01:09]} Qxf7 {[%emt 0:00:29]} 41. Qd6 {[%emt 0:00:48]} h5 {[%emt 0:03:47]} 42. Qxc5 {[%emt 0:02:38]} Rb8 {[%emt 0:00:35]} 43. Qe7 {[%emt 0:01:36]} Kg8 {[%emt 0:00:25]} 44. b4 {[%emt 0:00:00]} h4+ {[%emt 0:00:00]} 45. Kh3 {[%emt 0:00:00]} Re8 {[%emt 0:00:00]} 46. Qxf7+ Kxf7 {[%emt 0:00:00]} 47. b5 {[%emt 0:00:00]} Re3+ {[%emt 0:00:00]} 48. Kg2 {[%emt 0:00:00]} Rc3 {[%emt 0:00:00]} 49. b6 {[%emt 0:00:00]} Rxc4 {[%emt 0:00:00]} 50. Rb1 {[%emt 0:00:00]} Rc8 {[%emt 0:00:00]} 51. b7 {[%emt 0:00:00]} Rb8 {[%emt 0:00:00]} 52. Rb6 {[%emt 0:00:00]} g5 {[%emt 0:00:00]} 53. Kh3 {[%emt 0:00:00]} Kg6 {[%emt 0:00:00]} 54. Kg4 {[%emt 0:00:00]} Kh6 {[%emt 0:00:00]} 55. Kf5 {[%emt 0:00:00]} h3 {[%emt 0:00:00]} 56. f7+ {[%emt 0:00:00]} Kg7 {[%emt 0:00:00]} 57. Rf6 {[%emt 0:00:05]} h2 {[%emt 0:00:00]} 58. f8=Q+ {[%emt 0:00:23]} Rxf8 {[%emt 0:00:00]} 59. Rxf8 {[%emt 0:00:02]} h1=Q {[%emt 0:00:00]} 60. b8=Q {[%emt 0:01:22]} Qf3+ {[%emt 0:00:00]} 61. Kxg5 {[%emt 0:00:05]} Qxf8 {[%emt 0:00:00]} 62. Qe5+ {[%emt 0:00:16]} Kg8 {[%emt 0:00:00]} 63. Qe6+ {[%emt 0:00:38]} Qf7 {[%emt 0:00:00]} 1/2-1/2

[Event "49th Rilton Cup 2019-20"]
[Site "Stockholm"]
[Date "2019.12.27"]
[Round "1.17"]
[White "Pavlovic, Milos"]
[Black "Gueci, Tea"]
[Result "1-0"]
[ECO "A46"]
[WhiteElo "2480"]
[BlackElo "2250"]
[Annotator "ChessBase"]
[PlyCount "99"]
[EventDate "2019.12.27"]
[EventType "swiss"]
[EventCountry "SWE"]
[SourceTitle "playchess.com"]
[Source "ChessBase"]
[SourceQuality "1"]
[TimeControl "30/5400+30:1800+30"]

1. d4 {[%emt 0:00:00]} Nf6 {[%emt 0:00:00]} 2. Nf3 {[%emt 0:00:00]} e6 {[%emt 0:00:00]} 3. e3 {[%emt 0:02:20]} b6 {[%emt 0:00:05]} 4. Bd3 {[%emt 0:00:10]} Bb7 {[%emt 0:00:10]} 5. O-O {[%emt 0:00:10]} Be7 {[%emt 0:01:36]} 6. c4 {[%emt 0:02:59]} c5 {[%emt 0:02:46]} 7. Nc3 {[%emt 0:00:29]} O-O {[%emt 0:05:41]} 8. d5 {[%emt 0:00:55]} d6 {[%emt 0:05:50]} 9. e4 {[%emt 0:00:51]} e5 {[%emt 0:04:17]} 10. Ne1 {[%emt 0:03:25]} Nbd7 {[%emt 0:02:05]} 11. g3 {[%emt 0:00:21]} g6 {[%emt 0:03:04]} 12. Bh6 {[%emt 0:07:15]} Re8 {[%emt 0:01:50]} 13. Ng2 {[%emt 0:15:25]} Nh5 {[%emt 0:03:08]} 14. Bc2 {[%emt 0:06:23]} Ng7 {[%emt 0:08:01]} 15. Ba4 {[%emt 0:00:43]} a6 {[%emt 0:05:56]} 16. Ne3 {[%emt 0:04:19]} Qc7 {[%emt 0:11:34]} 17. Qe2 {[%emt 0:07:59]} Red8 {[%emt 0:04:27]} 18. f4 {[%emt 0:05:36]} exf4 {[%emt 0:01:00]} 19. gxf4 {[%emt 0:00:14]} Bf6 {[%emt 0:02:32]} 20. e5 {[%emt 0:34:50]} dxe5 {[%emt 0:04:44]} 21. Ng4 {[%emt 0:00:05]} e4 {[%emt 0:11:27]} 22. f5 {[%emt 0:02:27]} Bd4+ {[%emt 0:02:58]} 23. Kh1 {[%emt 0:00:01]} b5 {[%emt 0:04:26]} 24. Bf4 {[%emt 0:00:28]} Qb6 {[%emt 0:03:05]} 25. Nh6+ {[%emt 0:00:11]} Kf8 {[%emt 0:00:11]} 26. fxg6 {[%emt 0:00:23]} Qxg6 {[%emt 0:01:18]} 27. Nxe4 {[%emt 0:03:38]} Ne5 {[%emt 0:04:36]} 28. Bxe5 {[%emt 0:01:06]} Qxh6 {[%emt 0:00:08]} 29. Bxd4 {[%emt 0:01:15]} cxd4 {[%emt 0:00:22]} 30. Qf2 {[%emt 0:00:30]} Qg6 {[%emt 0:01:40]} 31. Nc5 {[%emt 0:30:25]} Bxd5+ {[%emt 0:33:52]} 32. cxd5 {[%emt 0:00:01]} bxa4 {[%emt 0:00:09]} 33. Qxd4 {[%emt 0:00:10]} Rd6 {[%emt 0:02:45]} 34. Ne4 {[%emt 0:00:24]} Rd7 {[%emt 0:00:21]} 35. Rg1 {[%emt 0:00:39]} Qh6 {[%emt 0:00:14]} 36. Rg2 {[%emt 0:01:14]} Rc8 {[%emt 0:00:51]} 37. Rag1 {[%emt 0:00:11]} f5 {[%emt 0:00:37]} 38. Nf6 {[%emt 0:00:31]} Rdc7 {[%emt 0:00:37]} 39. d6 {[%emt 0:00:54]} Rc1 {[%emt 0:00:19]} 40. d7 {[%emt 0:00:17]} Rxg1+ {[%emt 0:00:25]} 41. Rxg1 {[%emt 0:00:00]} Rd8 {[%emt 0:00:00]} 42. Nxh7+ {[%emt 0:00:00]} Kg8 {[%emt 0:00:00]} 43. Nf6+ {[%emt 0:00:00]} Kf7 {[%emt 0:00:00]} 44. Nd5 {[%emt 0:00:00]} Rxd7 {[%emt 0:00:00]} 45. Qe5 {[%emt 0:00:00]} Kf8 {[%emt 0:00:00]} 46. Nf6 {[%emt 0:00:00]} Kf7 {[%emt 0:00:52]} 47. Rxg7+ {[%emt 0:00:00]} Qxg7 {[%emt 0:00:22]} 48. Nxd7 {[%emt 0:00:00]} Qg4 {[%emt 0:01:07]} 49. Qd5+ {[%emt 0:00:04]} Ke7 {[%emt 0:00:19]} 50. Ne5 {[%emt 0:01:02]} 1-0

[Event "49th Rilton Cup 2019-20"]
[Site "Stockholm"]
[Date "2019.12.27"]
[Round "1.19"]
[White "Gagare, Shardul"]
[Black "Valkama, Eero"]
[Result "1-0"]
[ECO "C50"]
[WhiteElo "2468"]
[BlackElo "2249"]
[Annotator "ChessBase"]
[PlyCount "101"]
[EventDate "2019.12.27"]
[EventType "swiss"]
[EventCountry "SWE"]
[SourceTitle "playchess.com"]
[Source "ChessBase"]
[SourceQuality "1"]
[TimeControl "30/5400+30:1800+30"]

1. e4 {[%emt 0:00:00]} e5 {[%emt 0:00:00]} 2. Bc4 {[%emt 0:00:00]} Nc6 {[%emt 0:00:00]} 3. Nf3 {[%emt 0:00:15]} Bc5 {[%emt 0:00:00]} 4. d3 {[%emt 0:00:29]} Nf6 {[%emt 0:00:02]} 5. c3 {[%emt 0:00:27]} a6 {[%emt 0:00:15]} 6. Nbd2 {[%emt 0:00:24]} O-O {[%emt 0:01:25]} 7. h3 {[%emt 0:02:26]} d6 {[%emt 0:02:54]} 8. Bb3 {[%emt 0:00:10]} Be6 {[%emt 0:01:06]} 9. O-O {[%emt 0:00:25]} h6 {[%emt 0:01:22]} 10. Re1 {[%emt 0:00:29]} Qd7 {[%emt 0:01:13]} 11. Nf1 {[%emt 0:01:24]} b5 {[%emt 0:05:54]} 12. Ng3 {[%emt 0:09:37]} Bxb3 {[%emt 0:06:14]} 13. axb3 {[%emt 0:02:44]} d5 {[%emt 0:05:43]} 14. b4 {[%emt 0:24:54]} Bb6 {[%emt 0:02:34]} 15. exd5 {[%emt 0:19:31]} Qxd5 {[%emt 0:00:10]} 16. Qc2 {[%emt 0:05:12]} Rfe8 {[%emt 0:09:01]} 17. Be3 {[%emt 0:03:55]} Bxe3 {[%emt 0:07:47]} 18. Rxe3 {[%emt 0:00:08]} Re6 {[%emt 0:04:49]} 19. Nd2 {[%emt 0:08:37]} Ne7 {[%emt 0:16:15]} 20. Nb3 {[%emt 0:02:00]} Ng6 {[%emt 0:08:35]} 21. c4 {[%emt 0:00:54]} Qc6 {[%emt 0:02:57]} 22. Na5 {[%emt 0:07:21]} Qd7 {[%emt 0:00:31]} 23. Rae1 {[%emt 0:05:47]} Rb8 {[%emt 0:07:13]} 24. Qc3 {[%emt 0:01:07]} Rc8 {[%emt 0:05:21]} 25. Kh2 {[%emt 0:01:02]} Rd6 {[%emt 0:05:07]} 26. Nb7 {[%emt 0:00:13]} Rb6 {[%emt 0:01:15]} 27. Nc5 {[%emt 0:00:33]} Qc6 {[%emt 0:00:17]} 28. Nf5 {[%emt 0:00:36]} Qa8 {[%emt 0:02:02]} 29. Rg3 {[%emt 0:01:32]} Re8 {[%emt 0:00:08]} 30. Ree3 {[%emt 0:02:11]} Qc8 {[%emt 0:01:05]} 31. Rgf3 {[%emt 0:30:33]} Nh7 {[%emt 0:30:59]} 32. Ne4 {[%emt 0:00:32]} Ne7 {[%emt 0:02:29]} 33. Qxe5 {[%emt 0:00:30]} Nxf5 {[%emt 0:00:27]} 34. Qxf5 {[%emt 0:00:05]} Qxf5 {[%emt 0:00:06]} 35. Rxf5 {[%emt 0:00:03]} bxc4 {[%emt 0:00:19]} 36. dxc4 {[%emt 0:00:06]} Rxb4 {[%emt 0:00:16]} 37. b3 {[%emt 0:00:06]} Re6 {[%emt 0:01:30]} 38. Ra5 {[%emt 0:01:21]} Reb6 {[%emt 0:01:01]} 39. Nc5 {[%emt 0:00:13]} Nf6 {[%emt 0:00:14]} 40. Rxa6 {[%emt 0:00:19]} Rxa6 {[%emt 0:00:41]} 41. Nxa6 {[%emt 0:00:02]} Rb7 {[%emt 0:00:08]} 42. Nc5 {[%emt 0:00:00]} Rb6 {[%emt 0:00:00]} 43. g4 {[%emt 0:00:00]} Rc6 {[%emt 0:00:00]} 44. Re5 {[%emt 0:00:00]} g6 {[%emt 0:00:00]} 45. Kg2 {[%emt 0:00:00]} Nh7 {[%emt 0:00:00]} 46. b4 {[%emt 0:00:00]} Rd6 {[%emt 0:00:00]} 47. Re8+ {[%emt 0:00:00]} Nf8 {[%emt 0:00:00]} 48. b5 {[%emt 0:00:00]} Rd4 {[%emt 0:00:00]} 49. Rc8 {[%emt 0:00:00]} Kg7 {[%emt 0:00:00]} 50. Rxc7 {[%emt 0:00:00]} Rxc4 {[%emt 0:00:00]} 51. Ne6+ {[%emt 0:00:00]} 1-0

[Event "49th Rilton Cup 2019-20"]
[Site "Stockholm"]
[Date "2019.12.27"]
[Round "1.20"]
[White "Petersson, Baldur Teodor"]
[Black "Alexakis, Dimitrios"]
[Result "0-1"]
[ECO "B30"]
[WhiteElo "2247"]
[BlackElo "2093"]
[Annotator "NA"]
[PlyCount "56"]
[EventDate "2019.12.27"]
[EventType "swiss"]
[EventCountry "SWE"]
[SourceTitle "playchess.com"]
[Source "ChessBase"]
[SourceQuality "1"]
[TimeControl "30/5400+30:1800+30"]

1. e4 {[%emt 0:00:00]} c5 {[%emt 0:00:00]} 2. Nf3 {[%emt 0:00:00]} Nc6 {[%emt 0:00:00]} 3. d3 {[%emt 0:00:00]} g6 {[%emt 0:04:36]} 4. g3 {[%emt 0:00:14]} Bg7 {[%emt 0:02:28]} 5. Bg2 {[%emt 0:00:14]} Nf6 {[%emt 0:01:07]} 6. O-O {[%emt 0:00:26]} O-O {[%emt 0:00:04]} 7. c3 {[%emt 0:01:46]} d6 {[%emt 0:02:59]} 8. Re1 {[%emt 0:00:30]} Bd7 {[%emt 0:26:15]} 9. d4 {[%emt 0:03:51]} cxd4 {[%emt 0:05:03]} 10. cxd4 {[%emt 0:00:08]} Bg4 {[%emt 0:01:16]} 11. Nc3 {[%emt 0:16:06]} Qb6 {[%emt 0:29:33]} 12. d5 {[%emt 0:20:48]} Ne5 {[%emt 0:00:12]} 13. Rb1 {[%emt 0:00:57]} Nfd7 {[%emt 0:00:58]} 14. Be3 {[%emt 0:09:11]} Qa6 {[%emt 0:01:43]} 15. h3 {[%emt 0:01:55]} Bxf3 {[%emt 0:02:23]} 16. Bxf3 {[%emt 0:00:07]} Nxf3+ {[%emt 0:00:37]} 17. Qxf3 {[%emt 0:00:08]} Ne5 {[%emt 0:00:04]} 18. Qd1 {[%emt 0:07:25]} Rfc8 {[%emt 0:07:45]} 19. Kg2 {[%emt 0:12:21]} b6 {[%emt 0:08:27]} 20. Qb3 {[%emt 0:01:42]} Nd3 {[%emt 0:00:40]} 21. Rh1 {[%emt 0:04:21]} Qc4 {[%emt 0:02:18]} 22. Qxc4 {[%emt 0:04:09]} Rxc4 {[%emt 0:00:02]} 23. Bd2 {[%emt 0:00:09]} Rac8 {[%emt 0:01:08]} 24. b3 {[%emt 0:00:43]} Rxc3 {[%emt 0:00:29]} 25. Bxc3 {[%emt 0:00:05]} Rxc3 {[%emt 0:00:04]} 26. Rhd1 {[%emt 0:00:52]} Nc5 {[%emt 0:00:30]} 27. Re1 {[%emt 0:02:58]} Rc2 {[%emt 0:00:09]} 28. Rbc1 {[%emt 0:00:15]} Nd3 {[%emt 0:00:04]} 0-1

[Event "49th Rilton Cup 2019-20"]
[Site "Stockholm"]
[Date "2019.12.27"]
[Round "1.21"]
[White "Keinanen, Toivo"]
[Black "Levi, Netanel"]
[Result "1-0"]
[ECO "A01"]
[WhiteElo "2447"]
[BlackElo "2247"]
[Annotator "NA RC"]
[PlyCount "53"]
[EventDate "2019.12.27"]
[EventType "swiss"]
[EventCountry "SWE"]
[SourceTitle "playchess.com"]
[Source "ChessBase"]
[SourceQuality "1"]
[TimeControl "30/5400+30:1800+30"]

1. b3 {[%emt 0:00:00]} e5 {[%emt 0:00:00]} 2. Bb2 {[%emt 0:01:42]} Nc6 {[%emt 0:01:48]} 3. Nf3 {[%emt 0:00:17]} e4 {[%emt 0:01:24]} 4. Nd4 {[%emt 0:00:05]} Nxd4 {[%emt 0:02:46]} 5. Bxd4 {[%emt 0:00:09]} d5 {[%emt 0:02:22]} 6. e3 {[%emt 0:00:12]} Nf6 {[%emt 0:07:55]} 7. c4 {[%emt 0:00:12]} c6 {[%emt 0:10:26]} 8. Nc3 {[%emt 0:09:37]} Be7 {[%emt 0:02:07]} 9. cxd5 {[%emt 0:00:45]} cxd5 {[%emt 0:00:19]} 10. Bb5+ {[%emt 0:01:14]} Bd7 {[%emt 0:00:34]} 11. Bxd7+ {[%emt 0:00:39]} Qxd7 {[%emt 0:00:10]} 12. d3 {[%emt 0:00:40]} Qf5 {[%emt 0:07:20]} 13. O-O {[%emt 0:08:49]} O-O {[%emt 0:03:49]} 14. dxe4 {[%emt 0:07:35]} dxe4 {[%emt 0:03:56]} 15. Rc1 {[%emt 0:04:35]} Nd5 {[%emt 0:06:17]} 16. Bxg7 {[%emt 0:05:51]} Rfd8 {[%emt 0:04:19]} 17. Bd4 {[%emt 0:02:47]} Bf6 {[%emt 0:04:49]} 18. Ne2 {[%emt 0:03:14]} Nb4 {[%emt 0:04:18]} 19. f3 {[%emt 0:12:13]} Bxd4 {[%emt 0:10:44]} 20. Nxd4 {[%emt 0:01:13]} Qg6 {[%emt 0:06:12]} 21. fxe4 {[%emt 0:04:29]} Qxe4 {[%emt 0:01:15]} 22. Qe1 {[%emt 0:00:31]} Nd3 {[%emt 0:10:26]} 23. Qg3+ {[%emt 0:00:13]} Qg6 {[%emt 0:00:02]} 24. Rc7 {[%emt 0:02:31]} Re8 {[%emt 0:01:50]} 25. Rfxf7 {[%emt 0:01:06]} Qxg3 {[%emt 0:00:49]} 26. hxg3 {[%emt 0:03:22]} Rxe3 {[%emt 0:00:25]} 27. Rg7+ {[%emt 0:00:47]} 1-0